[Event "Blixt-SM 2021"]
[Site "Elite Hotel Marina Plaza, Kungstorget 6, Helsingborg, Sweden"]
[Date "2021.11.14"]
[Round "9.5"]
[White "Abedinov, Adnan"]
[Black "Strom-Engdahl, Alexander"]
[Result "1-0"]
[TimeControl "3 minutes + 2 seconds per move."]
[WhiteFideId "1703544"]
[BlackFideId "1741586"]
[WhiteElo "2170"]
[BlackElo "1783"]

1. e4 {[%clk 00:03:03]} {[%emt 00:03:29]} e5 {[%clk 00:03:02]} {[%emt
00:00:03]} 2. Nc3 {[%clk 00:03:03]} {[%emt 00:00:01]} Nc6 {[%clk 00:03:00]}
{[%emt 00:00:04]} 3. f4 {[%clk 00:03:04]} d6 {[%clk 00:02:56]} {[%emt
00:00:06]} 4. Nf3 {[%clk 00:03:04]} {[%emt 00:00:02]} Bg4 {[%clk 00:02:50]}
{[%emt 00:00:07]} 5. Bb5 {[%clk 00:03:05]} {[%emt 00:00:01]} Qd7 {[%clk
00:02:43]} {[%emt 00:00:10]} 6. h3 {[%clk 00:02:52]} {[%emt 00:00:14]} Bxf3
{[%clk 00:02:43]} {[%emt 00:00:02]} 7. Qxf3 {[%clk 00:02:52]} {[%emt 00:00:02]}
Nf6 {[%clk 00:02:37]} {[%emt 00:00:09]} 8. Nd5 {[%clk 00:02:41]} {[%emt
00:00:13]} Be7 {[%clk 00:02:28]} {[%emt 00:00:11]} 9. Nxe7 {[%clk 00:02:36]}
{[%emt 00:00:06]} Qxe7 {[%clk 00:02:28]} {[%emt 00:00:02]} 10. d3 {[%clk
00:02:23]} {[%emt 00:00:16]} O-O {[%clk 00:02:22]} {[%emt 00:00:08]} 11. Bxc6
{[%clk 00:02:21]} {[%emt 00:00:04]} bxc6 {[%clk 00:02:23]} 12. O-O {[%clk
00:02:14]} {[%emt 00:00:08]} Rab8 {[%clk 00:02:20]} {[%emt 00:00:06]} 13. b3
{[%clk 00:02:15]} {[%emt 00:00:01]} Ne8 {[%clk 00:02:07]} {[%emt 00:00:15]} 14.
f5 {[%clk 00:02:07]} {[%emt 00:00:10]} f6 {[%clk 00:02:06]} {[%emt 00:00:03]}
15. Be3 {[%clk 00:02:07]} {[%emt 00:00:02]} a6 {[%clk 00:02:01]} {[%emt
00:00:07]} 16. g4 {[%clk 00:02:02]} {[%emt 00:00:07]} Rd8 {[%clk 00:02:00]}
{[%emt 00:00:03]} 17. a4 {[%clk 00:01:44]} {[%emt 00:00:20]} d5 {[%clk
00:01:55]} {[%emt 00:00:07]} 18. Rad1 {[%clk 00:01:44]} {[%emt 00:00:03]} d4
{[%clk 00:01:56]} {[%emt 00:00:01]} 19. Bd2 {[%clk 00:01:44]} {[%emt 00:00:02]}
c5 {[%clk 00:01:56]} {[%emt 00:00:02]} 20. Kh2 {[%clk 00:01:42]} {[%emt
00:00:04]} Nd6 {[%clk 00:01:47]} {[%emt 00:00:11]} 21. h4 {[%clk 00:01:42]}
{[%emt 00:00:02]} Kh8 {[%clk 00:01:34]} {[%emt 00:00:15]} 22. Rg1 {[%clk
00:01:43]} Qf7 {[%clk 00:01:07]} {[%emt 00:00:29]} 23. Rg2 {[%clk 00:01:42]}
{[%emt 00:00:02]} g6 {[%clk 00:00:58]} {[%emt 00:00:11]} 24. fxg6 {[%clk
00:01:16]} {[%emt 00:00:28]} Qxg6 {[%clk 00:00:56]} {[%emt 00:00:04]} 25. h5
{[%clk 00:01:14]} {[%emt 00:00:05]} Qg7 {[%clk 00:00:51]} {[%emt 00:00:07]} 26.
Rf1 {[%clk 00:01:06]} {[%emt 00:00:10]} Rf7 {[%clk 00:00:45]} {[%emt 00:00:08]}
27. Qh3 {[%clk 00:01:03]} {[%emt 00:00:06]} h6 {[%clk 00:00:42]} {[%emt
00:00:04]} 28. Qh4 {[%clk 00:00:41]} {[%emt 00:00:23]} Rdf8 {[%clk 00:00:37]}
{[%emt 00:00:06]} 29. Qe1 {[%clk 00:00:35]} {[%emt 00:00:09]} Nb7 {[%clk
00:00:24]} {[%emt 00:00:15]} 30. Qc1 {[%clk 00:00:35]} {[%emt 00:00:02]} Kh7
{[%clk 00:00:24]} {[%emt 00:00:02]} 31. Kh3 {[%clk 00:00:32]} {[%emt 00:00:05]}
Nd8 {[%clk 00:00:21]} {[%emt 00:00:05]} 32. Qa3 {[%clk 00:00:31]} {[%emt
00:00:03]} Ne6 {[%clk 00:00:21]} {[%emt 00:00:01]} 33. Rf5 {[%clk 00:00:27]}
{[%emt 00:00:06]} Qg8 {[%clk 00:00:11]} {[%emt 00:00:12]} 34. a5 {[%clk
00:00:28]} {[%emt 00:00:01]} Rg7 {[%clk 00:00:11]} {[%emt 00:00:01]} 35. Qa4
{[%clk 00:00:22]} {[%emt 00:00:08]} Ng5+ {[%clk 00:00:09]} {[%emt 00:00:04]} 36.
Bxg5 {[%clk 00:00:20]} {[%emt 00:00:04]} Rxg5 {[%clk 00:00:09]} {[%emt
00:00:02]} 37. Qd7+ {[%clk 00:00:18]} {[%emt 00:00:04]} Rf7 {[%clk 00:00:10]}
38. Qd5 {[%clk 00:00:16]} {[%emt 00:00:02]} Rxf5 {[%clk 00:00:07]} {[%emt
00:00:07]} 39. gxf5 {[%clk 00:00:17]} Rg7 {[%clk 00:00:06]} {[%emt 00:00:03]}
40. Qxg8+ {[%clk 00:00:12]} {[%emt 00:00:08]} Rxg8 {[%clk 00:00:06]} {[%emt
00:00:01]} 41. Rg6 {[%clk 00:00:13]} Rxg6 {[%clk 00:00:05]} {[%emt 00:00:03]}
42. fxg6+ {[%clk 00:00:14]} Kg7 {[%clk 00:00:05]} {[%emt 00:00:02]} 43. Kg4
{[%clk 00:00:16]} Kf8 {[%clk 00:00:04]} {[%emt 00:00:03]} 44. Kf5 {[%clk
00:00:16]} {[%emt 00:00:01]} Ke7 {[%clk 00:00:06]} 45. g7 {[%clk 00:00:16]}
{[%emt 00:00:02]} 1-0

[Event "Blixt-SM 2021"]
[Site "Elite Hotel Marina Plaza, Kungstorget 6, Helsingborg, Sweden"]
[Date "2021.11.14"]
[Round "11.4"]
[White "Nilsson, Patrik"]
[Black "Mauritsson, Sebastian"]
[Result "0-1"]
[TimeControl "3 minutes + 2 seconds per move."]
[BlackTitle "FM"]
[WhiteFideId "1708171"]
[BlackFideId "1707892"]
[WhiteElo "2143"]
[BlackElo "2390"]

1. d4 {[%clk 00:03:02]} d5 {[%clk 00:03:04]} 2. Bf4 {[%clk 00:03:03]} Nf6
{[%clk 00:03:05]} {[%emt 00:00:02]} 3. e3 {[%clk 00:03:04]} c5 {[%clk
00:03:02]} {[%emt 00:00:04]} 4. c3 {[%clk 00:03:05]} Nc6 {[%clk 00:03:01]}
{[%emt 00:00:04]} 5. Nd2 {[%clk 00:03:06]} Bf5 {[%clk 00:02:56]} {[%emt
00:00:07]} 6. Ngf3 {[%clk 00:02:53]} {[%emt 00:00:15]} e6 {[%clk 00:02:55]}
{[%emt 00:00:04]} 7. Qb3 {[%clk 00:02:53]} {[%emt 00:00:02]} Qc8 {[%clk
00:02:42]} {[%emt 00:00:15]} 8. c4 {[%clk 00:02:03]} {[%emt 00:00:52]} cxd4
{[%clk 00:02:30]} {[%emt 00:00:14]} 9. exd4 {[%clk 00:02:03]} {[%emt 00:00:02]}
Bb4 {[%clk 00:02:28]} {[%emt 00:00:04]} 10. Be2 {[%clk 00:01:48]} {[%emt
00:00:16]} O-O {[%clk 00:02:27]} {[%emt 00:00:04]} 11. O-O {[%clk 00:01:46]}
{[%emt 00:00:04]} Bxd2 {[%clk 00:02:22]} {[%emt 00:00:07]} 12. Bxd2 {[%clk
00:01:46]} {[%emt 00:00:01]} dxc4 {[%clk 00:02:16]} {[%emt 00:00:09]} 13. Bxc4
{[%clk 00:01:46]} {[%emt 00:00:02]} Qc7 {[%clk 00:02:06]} {[%emt 00:00:11]} 14.
Rfe1 {[%clk 00:01:41]} {[%emt 00:00:07]} h6 {[%clk 00:02:03]} {[%emt 00:00:06]}
15. a4 {[%clk 00:01:31]} {[%emt 00:00:12]} Rfd8 {[%clk 00:01:59]} {[%emt
00:00:06]} 16. Bc3 {[%clk 00:01:31]} {[%emt 00:00:02]} Rac8 {[%clk 00:01:56]}
{[%emt 00:00:04]} 17. Bf1 {[%clk 00:01:25]} {[%emt 00:00:08]} Nd5 {[%clk
00:01:55]} {[%emt 00:00:04]} 18. Bd2 {[%clk 00:01:02]} {[%emt 00:00:25]} Qd7
{[%clk 00:01:46]} {[%emt 00:00:11]} 19. Ne5 {[%clk 00:00:58]} {[%emt 00:00:05]}
Nxe5 {[%clk 00:01:45]} {[%emt 00:00:03]} 20. dxe5 {[%clk 00:00:57]} {[%emt
00:00:03]} Bc2 {[%clk 00:01:42]} {[%emt 00:00:06]} 21. Qg3 {[%clk 00:00:54]}
{[%emt 00:00:04]} Bg6 {[%clk 00:01:41]} {[%emt 00:00:03]} 22. Red1 {[%clk
00:00:47]} {[%emt 00:00:09]} Rc2 {[%clk 00:01:38]} {[%emt 00:00:05]} 23. b4
{[%clk 00:00:41]} {[%emt 00:00:09]} Rdc8 {[%clk 00:01:38]} {[%emt 00:00:02]} 24.
b5 {[%clk 00:00:40]} {[%emt 00:00:03]} b6 {[%clk 00:01:38]} {[%emt 00:00:02]}
25. Bd3 {[%clk 00:00:36]} {[%emt 00:00:05]} Bxd3 {[%clk 00:01:32]} {[%emt
00:00:08]} 26. Qxd3 {[%clk 00:00:37]} Kh8 {[%clk 00:01:23]} {[%emt 00:00:11]}
27. a5 {[%clk 00:00:36]} {[%emt 00:00:04]} Qc7 {[%clk 00:01:22]} {[%emt
00:00:03]} 28. Rdc1 {[%clk 00:00:26]} {[%emt 00:00:12]} Rxc1+ {[%clk 00:01:18]}
{[%emt 00:00:05]} 29. Rxc1 {[%clk 00:00:24]} {[%emt 00:00:03]} Qxc1+ {[%clk
00:01:18]} {[%emt 00:00:02]} 0-1

[Event "Blixt-SM 2021"]
[Site "Elite Hotel Marina Plaza, Kungstorget 6, Helsingborg, Sweden"]
[Date "2021.11.14"]
[Round "13.2"]
[White "Kucuksari, Kaan"]
[Black "Olsson, Linus"]
[Result "1-0"]
[TimeControl "3 minutes + 2 seconds per move."]
[WhiteTitle "FM"]
[BlackTitle "FM"]
[WhiteFideId "6380166"]
[BlackFideId "1706098"]
[WhiteElo "2301"]
[BlackElo "2204"]

1. d4 {[%clk 00:03:03]} Nf6 {[%clk 00:03:03]} {[%emt 00:00:02]} 2. c4 {[%clk
00:03:04]} e5 {[%clk 00:03:02]} {[%emt 00:00:03]} 3. dxe5 {[%clk 00:03:05]}
{[%emt 00:00:01]} Ne4 {[%clk 00:03:03]} {[%emt 00:00:01]} 4. a3 {[%clk
00:02:23]} {[%emt 00:00:44]} d6 {[%clk 00:03:03]} {[%emt 00:00:02]} 5. exd6
{[%clk 00:02:24]} {[%emt 00:00:02]} Bxd6 {[%clk 00:03:02]} {[%emt 00:00:02]} 6.
e3 {[%clk 00:01:54]} {[%emt 00:00:31]} Nc6 {[%clk 00:02:47]} {[%emt 00:00:18]}
7. Nf3 {[%clk 00:01:52]} {[%emt 00:00:04]} Qe7 {[%clk 00:02:42]} {[%emt
00:00:07]} 8. Nbd2 {[%clk 00:01:45]} {[%emt 00:00:08]} Bf5 {[%clk 00:02:42]}
{[%emt 00:00:03]} 9. Nxe4 {[%clk 00:01:43]} {[%emt 00:00:04]} Bxe4 {[%clk
00:02:42]} {[%emt 00:00:02]} 10. Bd3 {[%clk 00:01:01]} {[%emt 00:00:44]} O-O-O
{[%clk 00:02:40]} {[%emt 00:00:03]} 11. Bxe4 {[%clk 00:00:57]} {[%emt
00:00:06]} Qxe4 {[%clk 00:02:28]} {[%emt 00:00:14]} 12. Qe2 {[%clk 00:00:53]}
{[%emt 00:00:07]} g5 {[%clk 00:02:10]} {[%emt 00:00:20]} 13. h3 {[%clk
00:00:27]} {[%emt 00:00:28]} h5 {[%clk 00:02:09]} {[%emt 00:00:03]} 14. Rg1
{[%clk 00:00:12]} {[%emt 00:00:17]} g4 {[%clk 00:02:04]} {[%emt 00:00:07]} 15.
Nd2 {[%clk 00:00:13]} {[%emt 00:00:01]} Qg6 {[%clk 00:01:59]} {[%emt 00:00:07]}
16. h4 {[%clk 00:00:11]} {[%emt 00:00:04]} g3 {[%clk 00:01:49]} {[%emt
00:00:12]} 17. f3 {[%clk 00:00:10]} {[%emt 00:00:03]} Ne5 {[%clk 00:01:42]}
{[%emt 00:00:10]} 18. Ne4 {[%clk 00:00:11]} Be7 {[%clk 00:01:34]} {[%emt
00:00:10]} 19. Bd2 {[%clk 00:00:10]} {[%emt 00:00:04]} Nd3+ {[%clk 00:01:33]}
{[%emt 00:00:03]} 20. Kf1 {[%emt 00:00:11]} Bxh4 {[%clk 00:01:21]} {[%emt
00:00:03]} 21. Bc3 {[%clk 00:00:10]} {[%emt 00:00:03]} Rhe8 {[%clk 00:01:11]}
{[%emt 00:00:12]} 22. Bd4 {[%clk 00:00:11]} {[%emt 00:00:02]} Nf2 23. Nxf2
{[%clk 00:00:12]} gxf2 {[%emt 00:00:01]} 24. Rh1 Rxd4 {[%clk 00:00:21]} {[%emt
00:00:13]} 25. g4 {[%clk 00:00:05]} {[%emt 00:00:11]} Bf6 {[%clk 00:00:11]}
{[%emt 00:00:12]} 26. Rxh5 {[%clk 00:00:04]} {[%emt 00:00:03]} Rdd8 {[%clk
00:00:11]} {[%emt 00:00:03]} 27. Kxf2 {[%clk 00:00:04]} {[%emt 00:00:02]} Be7
{[%clk 00:00:08]} {[%emt 00:00:05]} 28. Kg2 {[%clk 00:00:05]} Bd6 {[%clk
00:00:09]} 29. Rah1 {[%clk 00:00:06]} a6 {[%clk 00:00:11]} {[%emt 00:00:01]} 30.
b4 {[%clk 00:00:07]} Kb8 {[%clk 00:00:12]} 31. c5 {[%clk 00:00:08]} {[%emt
00:00:01]} Bf8 {[%clk 00:00:12]} 32. Rd1 {[%clk 00:00:08]} {[%emt 00:00:03]}
Qc6 {[%clk 00:00:12]} {[%emt 00:00:02]} 33. Rf5 {[%clk 00:00:05]} {[%emt
00:00:04]} f6 {[%clk 00:00:12]} {[%emt 00:00:03]} 34. Rd2 {[%clk 00:00:05]}
{[%emt 00:00:02]} Rxd2 {[%clk 00:00:12]} {[%emt 00:00:02]} 35. Qxd2 {[%clk
00:00:07]} Be7 {[%clk 00:00:12]} {[%emt 00:00:02]} 36. Qd5 {[%clk 00:00:08]}
{[%emt 00:00:01]} Qa4 {[%clk 00:00:12]} {[%emt 00:00:02]} 37. Qf7 {[%clk
00:00:05]} {[%emt 00:00:05]} Qd7 {[%clk 00:00:11]} {[%emt 00:00:04]} 38. Rd5
{[%clk 00:00:05]} {[%emt 00:00:01]} Qc6 {[%clk 00:00:10]} {[%emt 00:00:03]} 39.
Rd4 {[%clk 00:00:05]} {[%emt 00:00:02]} Rc8 {[%clk 00:00:10]} {[%emt 00:00:02]}
40. Qxe7 {[%clk 00:00:06]} {[%emt 00:00:01]} f5 {[%clk 00:00:09]} {[%emt
00:00:03]} 41. Rd8 {[%emt 00:00:04]} Rxd8 {[%clk 00:00:08]} {[%emt 00:00:02]}
42. Qxd8+ {[%clk 00:00:06]} Ka7 {[%clk 00:00:10]} 43. gxf5 {[%clk 00:00:07]}
{[%emt 00:00:01]} Qh6 {[%clk 00:00:09]} {[%emt 00:00:02]} 44. Qd4 {[%clk
00:00:07]} {[%emt 00:00:02]} c6 {[%clk 00:00:10]} {[%emt 00:00:01]} 45. Qf4
{[%clk 00:00:08]} Qf6 {[%clk 00:00:11]} 46. e4 {[%clk 00:00:09]} {[%emt
00:00:01]} a5 {[%clk 00:00:12]} 47. e5 {[%clk 00:00:10]} Qg7+ {[%clk 00:00:13]}
{[%emt 00:00:01]} 48. Kf2 {[%clk 00:00:12]} a4 {[%clk 00:00:14]} {[%emt
00:00:02]} 49. e6 {[%clk 00:00:13]} Qb2+ {[%clk 00:00:15]} {[%emt 00:00:01]} 50.
Kg3 {[%clk 00:00:14]} Qxa3 {[%clk 00:00:16]} {[%emt 00:00:02]} 51. e7 {[%clk
00:00:15]} Qb2 {[%clk 00:00:14]} {[%emt 00:00:04]} 52. e8=Q {[%clk 00:00:15]}
{[%emt 00:00:02]} a3 {[%clk 00:00:15]} {[%emt 00:00:01]} 53. Qeb8+ {[%clk
00:00:16]} Ka6 {[%clk 00:00:17]} {[%emt 00:00:01]} 54. Qc4+ {[%clk 00:00:17]}
b5 {[%clk 00:00:17]} {[%emt 00:00:02]} 55. Qb6# {[%clk 00:00:17]} 1-0

[Event "Blixt-SM 2021"]
[Site "Elite Hotel Marina Plaza, Kungstorget 6, Helsingborg, Sweden"]
[Date "2021.11.14"]
[Round "2.5"]
[White "Neretljak, Nedzad"]
[Black "Nimander, Max"]
[Result "1-0"]
[TimeControl "3 minutes + 2 seconds per move."]
[WhiteFideId "1713132"]
[BlackFideId "1746677"]
[WhiteElo "2148"]
[BlackElo "1917"]

1. e4 {[%clk 00:03:03]} {[%emt 00:10:41]} d5 {[%clk 00:03:02]} {[%emt
00:00:03]} 2. e5 {[%clk 00:03:05]} c5 {[%clk 00:03:02]} 3. c3 {[%clk 00:03:06]}
Bf5 {[%clk 00:03:03]} {[%emt 00:00:02]} 4. d4 {[%clk 00:03:06]} {[%emt
00:00:02]} e6 {[%clk 00:02:57]} {[%emt 00:00:07]} 5. a3 {[%clk 00:03:07]}
{[%emt 00:00:01]} Nc6 {[%clk 00:02:49]} {[%emt 00:00:11]} 6. Nf3 {[%clk
00:03:08]} cxd4 {[%clk 00:02:31]} {[%emt 00:00:20]} 7. cxd4 {[%clk 00:03:08]}
{[%emt 00:00:02]} a6 {[%clk 00:02:18]} {[%emt 00:00:14]} 8. Bd3 {[%clk
00:03:09]} {[%emt 00:00:01]} Bxd3 {[%clk 00:02:18]} {[%emt 00:00:03]} 9. Qxd3
{[%clk 00:03:09]} Nge7 {[%clk 00:02:19]} {[%emt 00:00:02]} 10. O-O {[%clk
00:03:06]} {[%emt 00:00:04]} Ng6 {[%clk 00:02:11]} {[%emt 00:00:10]} 11. Nc3
{[%clk 00:03:01]} {[%emt 00:00:06]} b5 {[%clk 00:02:03]} {[%emt 00:00:11]} 12.
b4 {[%clk 00:02:59]} {[%emt 00:00:04]} Be7 {[%clk 00:02:01]} {[%emt 00:00:04]}
13. Ne2 {[%clk 00:02:54]} {[%emt 00:00:07]} Qb6 {[%clk 00:01:59]} {[%emt
00:00:05]} 14. Ng3 {[%clk 00:02:52]} {[%emt 00:00:03]} h5 {[%clk 00:01:43]}
{[%emt 00:00:18]} 15. Be3 {[%clk 00:02:33]} {[%emt 00:00:20]} h4 {[%clk
00:01:35]} {[%emt 00:00:12]} 16. Ne2 {[%clk 00:02:34]} Rc8 {[%clk 00:01:08]}
{[%emt 00:00:29]} 17. Nd2 {[%clk 00:02:33]} {[%emt 00:00:03]} a5 {[%clk
00:00:43]} {[%emt 00:00:28]} 18. bxa5 {[%clk 00:02:28]} {[%emt 00:00:07]} Nxa5
{[%clk 00:00:38]} {[%emt 00:00:07]} 19. f4 {[%clk 00:02:27]} {[%emt 00:00:02]}
Nc4 {[%clk 00:00:35]} {[%emt 00:00:05]} 20. f5 {[%clk 00:02:16]} {[%emt
00:00:13]} Nf8 {[%clk 00:00:22]} {[%emt 00:00:15]} 21. f6 {[%clk 00:01:59]}
{[%emt 00:00:19]} gxf6 {[%clk 00:00:20]} {[%emt 00:00:04]} 22. exf6 {[%clk
00:01:59]} {[%emt 00:00:02]} Bd6 {[%clk 00:00:20]} {[%emt 00:00:02]} 23. Nf3
{[%clk 00:01:49]} {[%emt 00:00:11]} Nxe3 {[%clk 00:00:15]} {[%emt 00:00:07]} 24.
Qxe3 {[%clk 00:01:50]} {[%emt 00:00:02]} Ng6 {[%clk 00:00:13]} {[%emt
00:00:03]} 25. Ng5 {[%clk 00:01:45]} {[%emt 00:00:06]} Kf8 {[%clk 00:00:07]}
{[%emt 00:00:09]} 26. Qd3 {[%clk 00:01:26]} {[%emt 00:00:21]} Qb8 {[%clk
00:00:06]} {[%emt 00:00:03]} 27. Nxe6+ {[%emt 00:00:08]} fxe6 {[%clk 00:00:05]}
28. Qxg6 {[%clk 00:01:22]} {[%emt 00:00:02]} Bxh2+ {[%clk 00:00:06]} {[%emt
00:00:01]} 29. Kh1 {[%clk 00:01:23]} Rg8 {[%clk 00:00:06]} {[%emt 00:00:03]} 30.
Qh6+ {[%clk 00:01:17]} {[%emt 00:00:07]} Kf7 {[%clk 00:00:05]} {[%emt
00:00:03]} 31. Qh7+ {[%clk 00:01:17]} {[%emt 00:00:02]} Kf8 {[%clk 00:00:07]}
{[%emt 00:00:01]} 32. Qe7# {[%clk 00:01:14]} {[%emt 00:00:04]} 1-0

[Event "Blixt-SM 2021"]
[Site "Elite Hotel Marina Plaza, Kungstorget 6, Helsingborg, Sweden"]
[Date "2021.11.14"]
[Round "4.3"]
[White "Rasti, Arvin"]
[Black "Smith, Axel"]
[Result "1/2-1/2"]
[TimeControl "3 minutes + 2 seconds per move."]
[BlackTitle "GM"]
[WhiteFideId "1741160"]
[BlackFideId "1707930"]
[WhiteElo "2054"]
[BlackElo "2473"]

1. d4 {[%clk 00:03:02]} Nf6 {[%clk 00:03:04]} {[%emt 00:00:02]} 2. Nf3 {[%clk
00:03:02]} {[%emt 00:00:02]} c5 {[%clk 00:03:05]} {[%emt 00:00:01]} 3. d5
{[%clk 00:02:55]} {[%emt 00:00:08]} b5 {[%clk 00:03:06]} {[%emt 00:00:01]} 4.
g3 {[%clk 00:02:55]} {[%emt 00:00:02]} g6 {[%clk 00:03:01]} {[%emt 00:00:07]} 5.
Bg2 {[%clk 00:02:56]} {[%emt 00:00:01]} d6 {[%clk 00:03:00]} {[%emt 00:00:03]}
6. O-O {[%clk 00:02:54]} {[%emt 00:00:03]} Bg7 {[%clk 00:03:01]} 7. c4 {[%clk
00:02:45]} {[%emt 00:00:11]} b4 {[%clk 00:02:58]} {[%emt 00:00:06]} 8. Nbd2
{[%clk 00:02:40]} {[%emt 00:00:07]} O-O {[%clk 00:02:57]} {[%emt 00:00:04]} 9.
e4 {[%clk 00:02:40]} {[%emt 00:00:01]} Nbd7 {[%clk 00:02:44]} {[%emt 00:00:15]}
10. h3 {[%clk 00:02:37]} {[%emt 00:00:04]} a5 {[%clk 00:02:42]} {[%emt
00:00:05]} 11. Re1 {[%clk 00:02:33]} {[%emt 00:00:05]} Ne8 {[%clk 00:02:27]}
{[%emt 00:00:18]} 12. Rb1 {[%clk 00:02:24]} {[%emt 00:00:11]} a4 {[%clk
00:02:28]} {[%emt 00:00:02]} 13. Nf1 {[%clk 00:02:13]} {[%emt 00:00:11]} Ne5
{[%clk 00:02:24]} {[%emt 00:00:07]} 14. b3 {[%clk 00:02:03]} {[%emt 00:00:13]}
Nxf3+ {[%clk 00:02:11]} {[%emt 00:00:14]} 15. Bxf3 {[%clk 00:02:02]} {[%emt
00:00:02]} Bxh3 {[%clk 00:01:50]} {[%emt 00:00:24]} 16. Bb2 {[%clk 00:01:57]}
{[%emt 00:00:07]} axb3 {[%clk 00:01:43]} {[%emt 00:00:09]} 17. axb3 {[%clk
00:01:56]} {[%emt 00:00:03]} Ra2 {[%clk 00:01:39]} {[%emt 00:00:06]} 18. Bxg7
Nxg7 {[%clk 00:01:40]} 19. Ne3 {[%clk 00:01:45]} {[%emt 00:00:08]} Bd7 {[%clk
00:01:37]} {[%emt 00:00:04]} 20. Kg2 {[%clk 00:01:38]} {[%emt 00:00:10]} f5
{[%clk 00:01:26]} {[%emt 00:00:13]} 21. Re2 {[%clk 00:01:24]} {[%emt 00:00:16]}
Rxe2 22. Qxe2 {[%clk 00:01:25]} Qe8 {[%clk 00:00:56]} {[%emt 00:00:21]} 23.
exf5 {[%clk 00:01:19]} {[%emt 00:00:07]} Nxf5 {[%clk 00:00:56]} {[%emt
00:00:02]} 24. Nxf5 {[%clk 00:01:15]} Bxf5 {[%clk 00:00:58]} 25. Re1 {[%clk
00:01:15]} {[%emt 00:00:02]} Rf7 {[%clk 00:00:57]} {[%emt 00:00:02]} 26. Qe3
{[%clk 00:01:07]} {[%emt 00:00:09]} Qf8 {[%clk 00:00:58]} {[%emt 00:00:02]} 27.
Re2 {[%clk 00:01:07]} {[%emt 00:00:01]} Bd7 {[%clk 00:00:52]} {[%emt 00:00:08]}
28. Be4 {[%clk 00:01:03]} {[%emt 00:00:07]} Bg4 {[%clk 00:00:43]} {[%emt
00:00:11]} 29. Re1 {[%clk 00:01:04]} Qg7 {[%clk 00:00:39]} {[%emt 00:00:06]} 30.
f3 {[%clk 00:00:57]} {[%emt 00:00:10]} Bd7 {[%clk 00:00:35]} {[%emt 00:00:05]}
31. Re2 {[%clk 00:00:53]} {[%emt 00:00:06]} Qe5 {[%clk 00:00:31]} {[%emt
00:00:06]} 32. Bc2 {[%clk 00:00:46]} {[%emt 00:00:09]} Qh5 {[%clk 00:00:19]}
{[%emt 00:00:14]} 33. g4 {[%clk 00:00:42]} {[%emt 00:00:06]} Bxg4 {[%clk
00:00:16]} {[%emt 00:00:05]} 34. fxg4 {[%clk 00:00:32]} {[%emt 00:00:10]} Qxg4+
{[%clk 00:00:18]} {[%emt 00:00:02]} 35. Kh2 {[%clk 00:00:29]} {[%emt 00:00:05]}
Qh5+ {[%clk 00:00:15]} {[%emt 00:00:05]} 36. Kg2 {[%clk 00:00:26]} {[%emt
00:00:04]} Qg4+ {[%clk 00:00:16]} {[%emt 00:00:03]} 37. Kh2 {[%clk 00:00:27]}
Qh5+ {[%clk 00:00:17]} 38. Kg2 {[%clk 00:00:27]} Qg4+ {[%clk 00:00:18]} {[%emt
00:00:01]} 39. Kh2 {[%clk 00:00:27]} {[%emt 00:00:02]} 1/2-1/2

[Event "Blixt-SM 2021"]
[Site "Elite Hotel Marina Plaza, Kungstorget 6, Helsingborg, Sweden"]
[Date "2021.11.14"]
[Round "6.1"]
[White "Jepson, Christian"]
[Black "Rasti, Arvin"]
[Result "1-0"]
[TimeControl "3 minutes + 2 seconds per move."]
[WhiteTitle "IM"]
[WhiteFideId "1701185"]
[BlackFideId "1741160"]
[WhiteElo "2412"]
[BlackElo "2054"]

1. Nf3 {[%clk 00:03:02]} {[%emt 00:00:01]} Nf6 {[%clk 00:03:03]} {[%emt
00:00:02]} 2. c4 {[%clk 00:03:03]} g6 {[%clk 00:03:04]} 3. Nc3 {[%clk
00:03:05]} Bg7 {[%clk 00:03:04]} {[%emt 00:00:01]} 4. e4 {[%clk 00:03:06]} d6
{[%clk 00:03:06]} 5. d4 {[%clk 00:03:07]} O-O {[%clk 00:03:06]} {[%emt
00:00:01]} 6. Be2 {[%clk 00:03:08]} Bg4 {[%clk 00:03:07]} {[%emt 00:00:02]} 7.
Be3 {[%clk 00:03:09]} {[%emt 00:00:02]} Nfd7 {[%clk 00:03:07]} {[%emt
00:00:02]} 8. Rc1 {[%clk 00:03:10]} e5 {[%clk 00:03:04]} {[%emt 00:00:05]} 9.
d5 {[%clk 00:03:08]} {[%emt 00:00:04]} a5 {[%clk 00:03:05]} 10. O-O {[%clk
00:02:48]} {[%emt 00:00:22]} Na6 {[%clk 00:03:06]} {[%emt 00:00:01]} 11. b3
{[%clk 00:02:41]} {[%emt 00:00:09]} Nac5 {[%clk 00:02:57]} {[%emt 00:00:10]} 12.
Rb1 {[%clk 00:02:29]} {[%emt 00:00:15]} b6 {[%clk 00:02:56]} {[%emt 00:00:02]}
13. a3 {[%clk 00:02:25]} {[%emt 00:00:07]} Nf6 {[%clk 00:02:49]} {[%emt
00:00:09]} 14. Nd2 {[%clk 00:02:19]} {[%emt 00:00:08]} Bd7 {[%clk 00:02:38]}
{[%emt 00:00:12]} 15. Re1 {[%clk 00:02:13]} {[%emt 00:00:09]} Kh8 {[%clk
00:02:37]} {[%emt 00:00:03]} 16. Qc2 {[%clk 00:02:12]} {[%emt 00:00:03]} Ng8
{[%clk 00:02:24]} {[%emt 00:00:14]} 17. b4 {[%clk 00:02:08]} {[%emt 00:00:07]}
axb4 {[%clk 00:02:18]} {[%emt 00:00:08]} 18. axb4 {[%clk 00:02:08]} {[%emt
00:00:01]} Na4 {[%clk 00:02:18]} {[%emt 00:00:02]} 19. Nb5 {[%clk 00:02:02]}
{[%emt 00:00:08]} f5 {[%clk 00:02:01]} {[%emt 00:00:19]} 20. f3 {[%clk
00:02:03]} {[%emt 00:00:01]} Bxb5 {[%clk 00:00:59]} {[%emt 00:01:05]} 21. cxb5
{[%clk 00:02:03]} Ra7 {[%clk 00:01:00]} 22. Ra1 {[%clk 00:01:58]} {[%emt
00:00:07]} Qa8 {[%clk 00:01:01]} 23. Ra3 {[%clk 00:01:20]} {[%emt 00:00:42]}
fxe4 {[%clk 00:00:42]} {[%emt 00:00:21]} 24. fxe4 {[%clk 00:01:07]} {[%emt
00:00:16]} Bh6 {[%clk 00:00:36]} {[%emt 00:00:07]} 25. Bxh6 {[%clk 00:00:54]}
{[%emt 00:00:15]} Nxh6 {[%clk 00:00:37]} 26. Rea1 {[%clk 00:00:55]} Qd8 {[%clk
00:00:21]} {[%emt 00:00:18]} 27. Rxa4 {[%clk 00:00:56]} {[%emt 00:00:02]} Rxa4
{[%clk 00:00:20]} {[%emt 00:00:03]} 28. Rxa4 {[%clk 00:00:52]} {[%emt
00:00:06]} Qg5 {[%clk 00:00:16]} {[%emt 00:00:05]} 29. Ra3 {[%clk 00:00:41]}
{[%emt 00:00:13]} Kg7 {[%clk 00:00:06]} {[%emt 00:00:12]} 30. Rf3 {[%clk
00:00:33]} {[%emt 00:00:10]} Ra8 {[%clk 00:00:05]} {[%emt 00:00:03]} 31. Nf1
{[%clk 00:00:24]} {[%emt 00:00:10]} Ng4 {[%clk 00:00:05]} {[%emt 00:00:03]} 32.
Qxc7+ {[%clk 00:00:24]} {[%emt 00:00:03]} Kh6 {[%clk 00:00:03]} {[%emt
00:00:03]} 33. Rh3+ {[%clk 00:00:23]} {[%emt 00:00:02]} 1-0